[Event "FIDE World School-ch O-13 2025"]
[Site "Vrnjacka Banja"]
[Date "2025.03.25"]
[Round "6.7"]
[White "Samanth Nataraj Naidu"]
[Black "Kuntelia, Luka"]
[Result "0-1"]
[Annotator "NA RC"]
[ECO "D00"]
[WhiteElo "1812"]
[BlackElo "1895"]
[PlyCount "144"]
[EventDate "2025.03.19"]
[EventType "swiss"]
[EventCountry "SRB"]
[SourceTitle "playchess.com"]
[Source "ChessBase"]
[SourceQuality "1"]
[TimeControl "5400+30"]

1. d4 {[%emt 0:00:19]} d5 {[%emt 0:00:02]} 2. e3 {[%emt 0:00:37]} Nf6 {[%emt 0:00:05]} 3. Bd3 {[%emt 0:00:25]} c5 {[%emt 0:00:29]} 4. c3 {[%emt 0:00:21]} Nc6 {[%emt 0:00:10]} 5. f4 {[%emt 0:00:07]} Bg4 {[%emt 0:00:11]} 6. Nf3 {[%emt 0:00:09]} e6 {[%emt 0:00:13]} 7. O-O {[%emt 0:00:59]} Bd6 {[%emt 0:00:35]} 8. Qe1 {[%emt 0:00:48]} O-O {[%emt 0:00:38]} 9. Ne5 {[%emt 0:04:48]} Bf5 {[%emt 0:00:14]} 10. Qe2 {[%emt 0:01:39]} Ne7 {[%emt 0:06:07]} 11. Nd2 {[%emt 0:02:57]} Qc7 {[%emt 0:02:24]} 12. h3 {[%emt 0:06:20]} a6 {[%emt 0:07:01]} 13. g4 {[%emt 0:05:26]} Bxd3 {[%emt 0:03:02]} 14. Qxd3 {[%emt 0:00:40]} b5 {[%emt 0:02:51]} 15. a3 {[%emt 0:14:14]} Rab8 {[%emt 0:12:21]} 16. Kh1 {[%emt 0:22:11]} a5 {[%emt 0:04:55]} 17. Rg1 {[%emt 0:10:54]} b4 {[%emt 0:09:47]} 18. g5 {[%emt 0:07:21]} Bxe5 {[%emt 0:07:35]} 19. fxe5 {[%emt 0:05:44]} Nd7 {[%emt 0:01:04]} 20. Nf1 {[%emt 0:02:46]} Nf5 {[%emt 0:40:46]} 21. Ng3 {[%emt 0:01:32]} Nxg3+ {[%emt 0:00:00]} 22. Rxg3 {[%emt 0:00:13]} bxc3 {[%emt 0:00:00]} 23. Qxc3 {[%emt 0:01:27]} a4 {[%emt 0:01:30]} 24. Bd2 {[%emt 0:04:06]} Rb3 {[%emt 0:00:00]} 25. Qc2 {[%emt 0:00:07]} Rfb8 {[%emt 0:00:00]} 26. Bc3 {[%emt 0:01:06]} cxd4 {[%emt 0:00:00]} 27. exd4 {[%emt 0:00:07]} Nb6 {[%emt 0:02:00]} 28. Rag1 {[%emt 0:00:27]} Nc4 {[%emt 0:00:00]} 29. Bb4 {[%emt 0:00:38]} Rxb2 {[%emt 0:00:00]} 30. Qxa4 {[%emt 0:00:11]} Qb6 {[%emt 0:00:00]} 31. Qd1 {[%emt 0:00:52]} Rc8 {[%emt 0:00:00]} 32. R1g2 {[%emt 0:01:25]} Qa6 {[%emt 0:00:00]} 33. Rxb2 {[%emt 0:02:54]} Nxb2 {[%emt 0:00:00]} 34. Qb1 {[%emt 0:00:07]} Na4 {[%emt 0:00:00]} 35. Rg2 {[%emt 0:01:18]} Qb5 {[%emt 0:00:00]} 36. Rc2 {[%emt 0:01:39]} Rc4 {[%emt 0:00:00]} 37. Qd1 {[%emt 0:01:19]} Nb6 {[%emt 0:00:00]} 38. Rxc4 {[%emt 0:00:37]} dxc4 {[%emt 0:00:30]} 39. Bc5 {[%emt 0:00:12]} Nd5 {[%emt 0:01:12]} 40. a4 {[%emt 0:00:25]} Qb2 {[%emt 0:01:22]} 41. Qf1 {[%emt 0:00:48]} Qa2 {[%emt 0:00:55]} 42. a5 {[%emt 0:00:36]} Qxa5 {[%emt 0:00:23]} 43. Qb1 {[%emt 0:00:31]} Qa8 {[%emt 0:00:49]} 44. Kg1 {[%emt 0:00:30]} c3 {[%emt 0:00:27]} 45. Kf2 {[%emt 0:00:24]} Nf4 {[%emt 0:00:54]} 46. Ke3 {[%emt 0:00:36]} Nxh3 {[%emt 0:00:52]} 47. Kd3 {[%emt 0:00:17]} Nxg5 {[%emt 0:00:36]} 48. Kxc3 {[%emt 0:00:08]} h6 {[%emt 0:00:10]} 49. Qb6 {[%emt 0:00:36]} Qf3+ {[%emt 0:00:43]} 50. Kb4 {[%emt 0:00:08]} Kh7 {[%emt 0:00:22]} 51. Be7 {[%emt 0:00:43]} Qe4 {[%emt 0:00:22]} 52. Kc5 {[%emt 0:00:26]} Nf3 {[%emt 0:00:34]} 53. Qb2 {[%emt 0:00:31]} Qd5+ {[%emt 0:00:07]} 54. Kb4 {[%emt 0:00:08]} Qxd4+ {[%emt 0:00:05]} 55. Qxd4 {[%emt 0:00:09]} Nxd4 {[%emt 0:00:04]} 56. Kc3 {[%emt 0:00:14]} Nf5 {[%emt 0:00:05]} 57. Bc5 {[%emt 0:00:07]} g5 {[%emt 0:00:05]} 58. Kd3 {[%emt 0:00:05]} g4 {[%emt 0:00:07]} 59. Ke2 {[%emt 0:00:16]} Kg6 {[%emt 0:00:05]} 60. Kf2 {[%emt 0:00:15]} Kg5 {[%emt 0:00:06]} 61. Bb4 {[%emt 0:00:23]} Kf4 {[%emt 0:01:17]} 62. Bc3 {[%emt 0:00:08]} h5 {[%emt 0:00:05]} 63. Kg2 {[%emt 0:00:13]} h4 {[%emt 0:00:07]} 64. Kf2 {[%emt 0:00:08]} h3 {[%emt 0:00:05]} 65. Bd2+ {[%emt 0:00:09]} Kxe5 {[%emt 0:00:06]} 66. Kg1 {[%emt 0:00:08]} Ke4 {[%emt 0:00:05]} 67. Be1 {[%emt 0:00:09]} Kf3 {[%emt 0:00:05]} 68. Kh1 {[%emt 0:00:11]} g3 {[%emt 0:00:12]} 69. Kg1 {[%emt 0:00:05]} Kg4 {[%emt 0:00:24]} 70. Kh1 {[%emt 0:00:07]} Nh4 {[%emt 0:00:06]} 71. Bf2 {[%emt 0:00:38]} g2+ {[%emt 0:00:10]} 72. Kh2 {[%emt 0:00:07]} Nf3# {[%emt 0:00:06]} 0-1

[Event "FIDE World School-ch O-13 2025"]
[Site "Vrnjacka Banja"]
[Date "2025.03.25"]
[Round "6.8"]
[White "Wijerathna, Vinuka Dihain"]
[Black "Lee, Tsuen Jin Aiesec"]
[Result "1-0"]
[Annotator "NA RC"]
[ECO "C12"]
[WhiteElo "2117"]
[BlackElo "1693"]
[PlyCount "61"]
[EventDate "2025.03.19"]
[EventType "swiss"]
[EventCountry "SRB"]
[SourceTitle "playchess.com"]
[Source "ChessBase"]
[SourceQuality "1"]
[TimeControl "5400+30"]

1. e4 {[%emt 0:00:03]} e6 {[%emt 0:00:04]} 2. d4 {[%emt 0:00:04]} d5 {[%emt 0:00:05]} 3. Nc3 {[%emt 0:00:05]} Nf6 {[%emt 0:00:08]} 4. Bg5 {[%emt 0:00:18]} Bb4 {[%emt 0:00:06]} 5. e5 {[%emt 0:00:07]} h6 {[%emt 0:00:03]} 6. Bd2 {[%emt 0:00:17]} Bxc3 {[%emt 0:00:05]} 7. bxc3 {[%emt 0:00:07]} Ne4 {[%emt 0:00:05]} 8. Qg4 {[%emt 0:00:06]} g6 {[%emt 0:00:05]} 9. Bc1 {[%emt 0:00:02]} Nxc3 {[%emt 0:01:46]} 10. Bd3 {[%emt 0:00:39]} c5 {[%emt 0:03:12]} 11. dxc5 {[%emt 0:00:24]} Nc6 {[%emt 0:37:19]} 12. Nf3 {[%emt 0:00:06]} h5 {[%emt 0:03:58]} 13. Qf4 {[%emt 0:07:35]} d4 {[%emt 0:19:20]} 14. O-O {[%emt 0:05:53]} Nd5 {[%emt 0:02:05]} 15. Qg5 {[%emt 0:00:10]} Qa5 {[%emt 0:29:39]} 16. a4 {[%emt 0:23:57]} Qxc5 {[%emt 0:00:00]} 17. Ba3 {[%emt 0:00:08]} Ndb4 {[%emt 0:00:00]} 18. Qf6 {[%emt 0:05:30]} Rg8 {[%emt 0:00:00]} 19. Ng5 {[%emt 0:02:20]} Qe7 {[%emt 0:00:00]} 20. Ne4 {[%emt 0:00:09]} a5 {[%emt 0:00:00]} 21. Rad1 {[%emt 0:01:42]} Rf8 {[%emt 0:03:00]} 22. c3 {[%emt 0:11:49]} dxc3 {[%emt 0:00:00]} 23. Qf4 {[%emt 0:03:16]} g5 {[%emt 0:00:00]} 24. Nf6+ {[%emt 0:01:56]} Kd8 {[%emt 0:00:00]} 25. Qc1 {[%emt 0:00:07]} Nxe5 {[%emt 0:00:08]} 26. Bb5+ {[%emt 0:01:21]} Kc7 {[%emt 0:00:30]} 27. Qxc3+ {[%emt 0:00:38]} Nec6 {[%emt 0:00:28]} 28. Qg3+ {[%emt 0:00:46]} Kb6 {[%emt 0:00:11]} 29. Bc1 {[%emt 0:01:20]} Nd5 {[%emt 0:01:54]} 30. Rxd5 {[%emt 0:00:08]} Ka7 {[%emt 0:00:43]} 31. Be3+ {[%emt 0:00:20]} 1-0

[Event "FIDE World School-ch O-13 2025"]
[Site "Vrnjacka Banja"]
[Date "2025.03.28"]
[Round "9.1"]
[White "Yurasov, Matfey"]
[Black "Wijerathna, Vinuka Dihain"]
[Result "1-0"]
[Annotator "NA RC"]
[ECO "A14"]
[WhiteElo "2271"]
[BlackElo "2117"]
[PlyCount "149"]
[EventDate "2025.03.19"]
[EventType "swiss"]
[EventCountry "SRB"]
[SourceTitle "playchess.com"]
[Source "ChessBase"]
[SourceQuality "1"]
[TimeControl "5400+30"]

1. Nf3 {[%emt 0:01:30]} d5 {[%emt 0:00:09]} 2. b3 {[%emt 0:00:04]} Nf6 {[%emt 0:00:47]} 3. Bb2 {[%emt 0:00:06]} e6 {[%emt 0:00:14]} 4. g3 {[%emt 0:00:07]} Be7 {[%emt 0:01:06]} 5. Bg2 {[%emt 0:00:30]} b6 {[%emt 0:01:08]} 6. O-O {[%emt 0:00:16]} Bb7 {[%emt 0:00:02]} 7. c4 {[%emt 0:00:18]} O-O {[%emt 0:01:42]} 8. e3 {[%emt 0:00:23]} Nbd7 {[%emt 0:02:52]} 9. Nc3 {[%emt 0:02:40]} c5 {[%emt 0:02:43]} 10. Qe2 {[%emt 0:20:58]} Rc8 {[%emt 0:10:12]} 11. Rfd1 {[%emt 0:00:20]} Qc7 {[%emt 0:03:41]} 12. cxd5 {[%emt 0:18:48]} exd5 {[%emt 0:02:26]} (12... Nxd5 $11 13. Nxd5 exd5) 13. d4 {[%emt 0:01:58]} Qb8 $16 {[%emt 0:12:31]} (13... Rfe8 $11 {keeps the balance.}) 14. dxc5 {[%emt 0:18:27]} Nxc5 {[%emt 0:02:40]} 15. Nh4 {[%emt 0:00:29]} Rfd8 {[%emt 0:06:13]} 16. Nf5 {[%emt 0:04:47]} Bf8 {[%emt 0:00:06]} 17. Nxd5 {[%emt 0:09:54]} Rxd5 {[%emt 0:04:26]} 18. Bxd5 {[%emt 0:01:49]} Nxd5 {[%emt 0:00:35]} 19. Qg4 {[%emt 0:01:36]} f6 {[%emt 0:06:45]} 20. b4 {[%emt 0:00:33]} Nxb4 {[%emt 0:10:06]} 21. Qxb4 {[%emt 0:06:42]} Re8 {[%emt 0:05:46]} 22. Qc4+ {[%emt 0:00:04]} Kh8 {[%emt 0:02:16]} 23. Qf7 {[%emt 0:00:19]} Qc8 {[%emt 0:12:18]} 24. Nh6 {[%emt 0:00:07]} Qe6 {[%emt 0:00:06]} 25. Qxe6 {[%emt 0:00:08]} Nxe6 {[%emt 0:01:33]} 26. Nf7+ {[%emt 0:00:06]} Kg8 {[%emt 0:00:06]} 27. Nd6 {[%emt 0:00:02]} Bxd6 {[%emt 0:00:11]} 28. Rxd6 {[%emt 0:00:01]} Ng5 {[%emt 0:00:11]} 29. Kf1 {[%emt 0:06:45]} Nf3 {[%emt 0:00:06]} 30. Ke2 {[%emt 0:03:06]} Nxh2 {[%emt 0:00:16]} 31. Rd7 {[%emt 0:00:40]} Ba6+ {[%emt 0:00:10]} 32. Ke1 {[%emt 0:00:21]} Nf3+ {[%emt 0:02:29]} 33. Kd1 {[%emt 0:03:06]} Ra8 {[%emt 0:03:54]} 34. a4 {[%emt 0:00:00]} Bc4 {[%emt 0:00:56]} 35. Ra3 {[%emt 0:00:00]} Ng5 {[%emt 0:01:25]} 36. Rd4 {[%emt 0:00:25]} b5 {[%emt 0:01:10]} 37. axb5 {[%emt 0:00:59]} Bxb5 {[%emt 0:00:01]} 38. e4 {[%emt 0:00:25]} a6 {[%emt 0:00:58]} 39. f4 {[%emt 0:00:20]} Ne6 {[%emt 0:00:05]} 40. Rd6 {[%emt 0:00:02]} Nc5 {[%emt 0:00:15]} 41. e5 {[%emt 0:00:04]} fxe5 {[%emt 0:00:47]} 42. Bxe5 {[%emt 0:00:05]} Re8 {[%emt 0:01:44]} 43. Re3 {[%emt 0:01:04]} Kf7 {[%emt 0:02:28]} 44. Kd2 {[%emt 0:00:55]} Rc8 {[%emt 0:01:22]} 45. Bd4 {[%emt 0:00:21]} Nb7 {[%emt 0:00:41]} 46. Rd5 {[%emt 0:01:03]} Na5 {[%emt 0:00:39]} 47. Rf5+ {[%emt 0:00:11]} Kg8 {[%emt 0:00:01]} 48. Re7 {[%emt 0:00:59]} Nb3+ {[%emt 0:00:24]} 49. Ke3 {[%emt 0:00:04]} Nxd4 {[%emt 0:00:16]} 50. Kxd4 {[%emt 0:00:01]} Rd8+ {[%emt 0:00:55]} 51. Kc5 {[%emt 0:01:28]} Rc8+ {[%emt 0:01:05]} 52. Kd4 {[%emt 0:00:31]} Rd8+ {[%emt 0:00:19]} 53. Ke3 {[%emt 0:00:29]} Rd3+ {[%emt 0:00:37]} 54. Kf2 {[%emt 0:00:09]} Rd2+ {[%emt 0:00:28]} 55. Ke1 {[%emt 0:00:21]} Rd6 {[%emt 0:00:45]} 56. Rc5 {[%emt 0:00:34]} h6 {[%emt 0:00:38]} 57. Rcc7 {[%emt 0:00:24]} Rg6 {[%emt 0:00:22]} 58. Kf2 {[%emt 0:00:01]} Kf8 {[%emt 0:00:27]} 59. Ra7 {[%emt 0:00:14]} h5 {[%emt 0:00:24]} 60. Rf7+ {[%emt 0:00:34]} Kg8 {[%emt 0:00:37]} 61. Rf5 {[%emt 0:00:42]} Rc6 {[%emt 0:00:08]} 62. Ra8+ {[%emt 0:00:25]} Kh7 {[%emt 0:00:01]} 63. Rxh5+ {[%emt 0:00:06]} Kg6 {[%emt 0:00:19]} 64. Rg5+ {[%emt 0:00:03]} Kf6 {[%emt 0:00:34]} 65. Rf8+ {[%emt 0:00:06]} Ke7 {[%emt 0:00:04]} 66. Rg8 {[%emt 0:00:03]} Rc2+ {[%emt 0:00:07]} 67. Ke3 {[%emt 0:00:13]} Rc3+ {[%emt 0:00:06]} 68. Kd4 {[%emt 0:00:29]} Rd3+ {[%emt 0:00:16]} 69. Ke4 {[%emt 0:00:06]} Rb3 {[%emt 0:00:22]} 70. R8xg7+ {[%emt 0:00:06]} Kd6 {[%emt 0:00:05]} 71. R7g6+ {[%emt 0:00:31]} Kc7 {[%emt 0:00:01]} 72. Rh6 {[%emt 0:00:06]} Bc6+ {[%emt 0:00:10]} 73. Kd4 {[%emt 0:00:08]} a5 {[%emt 0:00:08]} 74. Rg7+ {[%emt 0:00:10]} Kb6 {[%emt 0:00:12]} 75. Rgg6 {[%emt 0:00:04]} 1-0

[Event "FIDE World School-ch O-13 2025"]
[Site "Vrnjacka Banja"]
[Date "2025.03.28"]
[Round "9.2"]
[White "Obidov, Biloliddin"]
[Black "Zharas, Aldiyar"]
[Result "1-0"]
[Annotator "NA RC"]
[ECO "B31"]
[WhiteElo "2020"]
[BlackElo "1924"]
[PlyCount "121"]
[EventDate "2025.03.19"]
[EventType "swiss"]
[EventCountry "SRB"]
[SourceTitle "playchess.com"]
[Source "ChessBase"]
[SourceQuality "1"]
[TimeControl "5400+30"]

1. e4 {[%emt 0:00:10]} c5 {[%emt 0:00:42]} 2. Nf3 {[%emt 0:00:23]} Nc6 {[%emt 0:00:05]} 3. Bb5 {[%emt 0:00:06]} g6 {[%emt 0:00:33]} 4. O-O {[%emt 0:00:15]} Bg7 {[%emt 0:00:05]} 5. Re1 {[%emt 0:00:31]} Nf6 {[%emt 0:00:10]} 6. c3 {[%emt 0:00:36]} O-O {[%emt 0:00:16]} 7. d4 {[%emt 0:01:34]} d5 {[%emt 0:00:25]} 8. e5 {[%emt 0:04:38]} Ne4 {[%emt 0:00:07]} 9. Bxc6 {[%emt 0:03:29]} bxc6 {[%emt 0:00:06]} 10. Be3 {[%emt 0:00:42] B31: Sicilian: 2...Nc6 3 Bb5 g6.} cxd4 {[%emt 0:01:38]} 11. cxd4 {[%emt 0:00:26]} Qb6 {[%emt 0:00:30]} 12. Qc1 {[%emt 0:02:14]} a5 {[%emt 0:02:47]} 13. Nc3 {[%emt 0:04:18]} Nxc3 {[%emt 0:02:13]} 14. Qxc3 {[%emt 0:00:14]} a4 {[%emt 0:00:25] now scores much better than the old 14...Bg4.} 15. Rac1 {[%emt 0:00:46]} Bd7 {[%emt 0:01:12]} 16. Re2 $146 {[%emt 0:02:33]} ({Predecessor:} 16. h3 Rfb8 17. Re2 h6 18. Ne1 Bf5 19. g4 Bd7 20. Nd3 Qb5 21. Rd2 f5 22. Nc5 {½-½ Wagner,D (2581)-Praggnanandhaa,R (2608) Titled Tuesday intern op 5th May blitz 2020 (6)}) 16... Qb5 {[%emt 0:19:39]} 17. Rd2 {[%emt 0:06:27]} Ra6 {[%emt 0:01:50]} 18. Ne1 {[%emt 0:07:12]} Bf5 {[%emt 0:00:57]} 19. Nd3 {[%emt 0:01:48]} Bxd3 $1 {[%emt 0:01:55]} 20. Rxd3 {[%emt 0:05:28]} Rb8 {[%emt 0:02:40]} 21. Rd2 $11 {[%emt 0:02:54]} Qb7 {[%emt 0:09:36]} 22. h4 {[%emt 0:04:23]} Qd7 {[%emt 0:10:24]} 23. Qd3 {[%emt 0:06:40]} Rab6 {[%emt 0:04:03]} 24. Qa3 {[%emt 0:03:59]} Qb7 {[%emt 0:06:36]} 25. Rcc2 {[%emt 0:02:49]} e6 {[%emt 0:04:55]} 26. Bg5 {[%emt 0:02:11]} Bf8 {[%emt 0:01:31]} 27. Qg3 {[%emt 0:00:27]} Rb4 {[%emt 0:08:51]} 28. h5 {[%emt 0:02:43]} Rc4 {[%emt 0:00:36]} 29. hxg6 {[%emt 0:01:39]} fxg6 {[%emt 0:00:17]} 30. Rxc4 {[%emt 0:03:33]} dxc4 {[%emt 0:00:01]} 31. Qg4 {[%emt 0:05:34]} Qf7 {[%emt 0:01:12]} 32. Rc2 {[%emt 0:01:11]} c3 {[%emt 0:05:29]} 33. Rxc3 {[%emt 0:05:57]} Rxb2 {[%emt 0:00:48]} 34. Rxc6 {[%emt 0:01:00]} Rxa2 {[%emt 0:01:26]} 35. Qxe6 {[%emt 0:01:29]} Qxe6 {[%emt 0:00:06]} 36. Rxe6 {[%emt 0:00:04]} Ra1+ {[%emt 0:00:03]} 37. Kh2 {[%emt 0:00:06]} Rd1 {[%emt 0:03:02]} 38. Be3 {[%emt 0:01:01]} a3 {[%emt 0:00:21]} 39. Ra6 {[%emt 0:00:21]} Kf7 {[%emt 0:02:14]} 40. Kg3 {[%emt 0:02:36]} Bb4 {[%emt 0:03:51]} 41. Kf3 {[%emt 0:02:16]} h6 {[%emt 0:02:03]} 42. Ke4 {[%emt 0:00:36]} Rb1 {[%emt 0:01:10]} 43. d5 {[%emt 0:00:49]} Bc3 {[%emt 0:01:16]} 44. e6+ {[%emt 0:00:57]} Kf6 {[%emt 0:01:25]} 45. Rxa3 {[%emt 0:00:07]} Rb4+ {[%emt 0:00:24]} 46. Kd3 {[%emt 0:00:06]} Be5 {[%emt 0:00:06]} 47. Ra7 {[%emt 0:00:51]} Rb3+ {[%emt 0:02:06]} 48. Ke2 {[%emt 0:01:35]} Bd6 {[%emt 0:00:40]} 49. Bd4+ {[%emt 0:02:56]} Kf5 {[%emt 0:00:00]} 50. e7 {[%emt 0:01:50]} Rb8 {[%emt 0:00:54]} 51. Rd7 {[%emt 0:00:14]} Ke4 {[%emt 0:01:40]} 52. Rxd6 {[%emt 0:00:27]} Re8 {[%emt 0:00:20]} 53. Bf6 {[%emt 0:00:15]} Kf5 {[%emt 0:00:21]} 54. Rd8 {[%emt 0:00:07]} Kxf6 {[%emt 0:00:09]} 55. Rxe8 {[%emt 0:00:01]} Kf7 {[%emt 0:00:08]} 56. Rh8 {[%emt 0:00:07]} Kxe7 {[%emt 0:00:06]} 57. Kd3 {[%emt 0:00:07]} h5 {[%emt 0:00:08]} 58. Ke4 {[%emt 0:00:03]} Kf6 {[%emt 0:00:05]} 59. Re8 {[%emt 0:00:05]} Kf7 {[%emt 0:00:05]} 60. Re5 {[%emt 0:00:05]} h4 {[%emt 0:00:08]} 61. d6 {[%emt 0:00:03]} 1-0

[Event "FIDE World School-ch O-13 2025"]
[Site "Vrnjacka Banja"]
[Date "2025.03.28"]
[Round "9.3"]
[White "Yang, Maxwell"]
[Black "Baturin-Vinogradov, Miroslav"]
[Result "0-1"]
[Annotator "NA RC"]
[ECO "A50"]
[WhiteElo "1970"]
[BlackElo "1912"]
[PlyCount "84"]
[EventDate "2025.03.19"]
[EventType "swiss"]
[EventCountry "SRB"]
[SourceTitle "playchess.com"]
[Source "ChessBase"]
[SourceQuality "1"]
[TimeControl "5400+30"]

1. d4 {[%emt 0:00:36]} Nf6 {[%emt 0:00:09]} 2. c4 {[%emt 0:00:03]} b6 {[%emt 0:00:08]} 3. Nc3 {[%emt 0:00:25]} Bb7 {[%emt 0:00:07]} 4. d5 {[%emt 0:02:23]} e6 {[%emt 0:00:09]} 5. e4 {[%emt 0:00:09]} exd5 {[%emt 0:00:56]} 6. exd5 {[%emt 0:00:19] A50: Queen's Fianchetto Defence (1 d4 Nf6 2 c4 b6).} Be7 {[%emt 0:04:28]} 7. Nf3 {[%emt 0:02:15]} O-O {[%emt 0:00:12]} 8. Bd3 {[%emt 0:00:14]} c6 {[%emt 0:04:25]} 9. O-O {[%emt 0:01:57]} h6 {[%emt 0:02:31]} 10. Bc2 {[%emt 0:09:27]} Bb4 {[%emt 0:04:05]} 11. Bb3 {[%emt 0:00:41]} ({White should try} 11. Nd4 $16) 11... Na6 {[%emt 0:04:55]} 12. Bf4 {[%emt 0:10:14]} Nc5 {[%emt 0:03:22]} 13. Bd6 {[%emt 0:05:41]} Re8 {[%emt 0:01:44]} 14. Bxc5 {[%emt 0:00:17]} Bxc5 {[%emt 0:01:10]} 15. a3 {[%emt 0:00:12]} cxd5 {[%emt 0:01:32]} 16. cxd5 {[%emt 0:00:37]} Ba6 {[%emt 0:02:11]} 17. Re1 {[%emt 0:00:18] [#]} Ng4 $1 {[%emt 0:01:25]} 18. Rxe8+ {[%emt 0:01:30]} Qxe8 {[%emt 0:00:58]} 19. Nd4 {[%emt 0:01:04]} Nxf2 {[%emt 0:02:50]} 20. Kxf2 {[%emt 0:01:55]} Qe5 {[%emt 0:00:05]} 21. Kg1 {[%emt 0:00:37]} Bxd4+ {[%emt 0:00:07]} 22. Kh1 {[%emt 0:00:06]} Bxc3 {[%emt 0:04:11]} 23. bxc3 $19 {[%emt 0:00:10]} Qxc3 {[%emt 0:00:19]} 24. Rc1 {[%emt 0:00:15]} Qa5 {[%emt 0:08:20]} 25. h3 {[%emt 0:05:49]} Re8 {[%emt 0:02:26]} 26. a4 {[%emt 0:01:19]} d6 {[%emt 0:02:49]} 27. Qf3 {[%emt 0:06:19]} Re1+ {[%emt 0:00:59]} 28. Rxe1 {[%emt 0:00:14]} Qxe1+ {[%emt 0:00:04]} 29. Kh2 {[%emt 0:00:11]} Qe5+ {[%emt 0:00:04]} 30. Kh1 {[%emt 0:00:09]} g6 {[%emt 0:00:43]} 31. Qg4 {[%emt 0:03:06]} Bd3 {[%emt 0:05:35]} 32. Qd1 {[%emt 0:11:29]} Qe2 {[%emt 0:00:51]} 33. Qxe2 {[%emt 0:01:11]} Bxe2 {[%emt 0:00:02]} 34. Kg1 {[%emt 0:00:23]} Kg7 {[%emt 0:00:58]} 35. Kf2 {[%emt 0:00:05]} Ba6 {[%emt 0:00:08]} 36. Kf3 {[%emt 0:00:09]} Kf6 {[%emt 0:00:07]} 37. Kf4 {[%emt 0:00:15]} Bf1 {[%emt 0:00:10]} 38. Kf3 {[%emt 0:00:02]} Ke5 {[%emt 0:00:07]} 39. h4 {[%emt 0:00:09]} Bd3 {[%emt 0:00:08]} 40. g4 {[%emt 0:00:14]} Be4+ {[%emt 0:00:06]} 41. Ke3 {[%emt 0:00:04]} Bxd5 {[%emt 0:00:18]} 42. Bxd5 {[%emt 0:00:08]} Kxd5 {[%emt 0:00:04]} 0-1

[Event "FIDE World School-ch O-13 2025"]
[Site "Vrnjacka Banja"]
[Date "2025.03.28"]
[Round "9.4"]
[White "Ritesh Maddukuri"]
[Black "Rusu, Lucas"]
[Result "1-0"]
[Annotator "NA RC"]
[ECO "A45"]
[WhiteElo "1773"]
[BlackElo "2049"]
[PlyCount "97"]
[EventDate "2025.03.19"]
[EventType "swiss"]
[EventCountry "SRB"]
[SourceTitle "playchess.com"]
[Source "ChessBase"]
[SourceQuality "1"]
[TimeControl "5400+30"]

1. d4 {[%emt 0:02:35]} Nf6 {[%emt 0:00:07]} 2. Bg5 {[%emt 0:00:06]} g6 {[%emt 0:01:22]} 3. Bxf6 {[%emt 0:00:11]} exf6 {[%emt 0:00:02]} 4. g3 {[%emt 0:00:11]} d5 {[%emt 0:02:16]} 5. Bg2 {[%emt 0:00:14]} Bg7 {[%emt 0:02:23]} 6. e3 {[%emt 0:00:29]} O-O {[%emt 0:02:49]} 7. Ne2 {[%emt 0:00:23]} Re8 {[%emt 1:25:01]} 8. O-O {[%emt 0:02:58]} c6 {[%emt 0:00:00]} 9. Nd2 {[%emt 0:06:16]} Qb6 {[%emt 0:00:00]} 10. b3 {[%emt 0:05:13]} Bg4 {[%emt 0:00:00]} 11. c4 {[%emt 0:10:49]} dxc4 {[%emt 0:00:00]} 12. Nxc4 $11 {[%emt 0:01:05]} Qd8 {[%emt 0:00:00]} 13. Re1 {[%emt 0:07:21]} Na6 {[%emt 0:00:00]} 14. h3 {[%emt 0:04:26]} Bxe2 {[%emt 0:00:00]} 15. Qxe2 {[%emt 0:00:17]} f5 {[%emt 0:00:00]} 16. Rad1 {[%emt 0:07:52]} Nc7 {[%emt 0:00:00]} 17. Nb2 {[%emt 0:11:09]} h5 {[%emt 0:00:00]} 18. h4 {[%emt 0:03:58]} f4 {[%emt 0:00:00]} 19. Qf3 {[%emt 0:09:51]} fxg3 {[%emt 0:00:00]} 20. fxg3 {[%emt 0:00:37]} Nd5 {[%emt 0:00:00]} 21. e4 {[%emt 0:10:19]} Nb4 {[%emt 0:00:00]} 22. e5 {[%emt 0:01:36]} f6 {[%emt 0:00:00]} 23. Nc4 {[%emt 0:03:22]} Rf8 {[%emt 0:00:00]} 24. Qe2 {[%emt 0:01:46]} Qe7 {[%emt 0:00:45]} 25. Nd6 {[%emt 0:01:31]} f5 {[%emt 0:01:42]} 26. Qc4+ {[%emt 0:00:14]} Nd5 {[%emt 0:00:19]} 27. Bxd5+ {[%emt 0:00:07]} cxd5 {[%emt 0:00:00]} 28. Qxd5+ {[%emt 0:00:10]} Kh7 {[%emt 0:00:03]} 29. Qxb7 {[%emt 0:00:29]} Qxb7 {[%emt 0:00:44]} 30. Nxb7 {[%emt 0:00:28]} f4 {[%emt 0:00:01]} 31. e6 {[%emt 0:00:24]} Bf6 {[%emt 0:00:49]} 32. d5 {[%emt 0:00:51]} Rab8 {[%emt 0:00:37]} 33. Nc5 {[%emt 0:00:17]} f3 {[%emt 0:02:19]} 34. Kf2 {[%emt 0:00:57]} Rbc8 {[%emt 0:00:53]} 35. Nd7 {[%emt 0:00:08]} Bd4+ {[%emt 0:00:11]} 36. Rxd4 {[%emt 0:00:12]} Rc2+ {[%emt 0:00:03]} 37. Ke3 {[%emt 0:00:09]} Rf5 {[%emt 0:00:48]} 38. e7 {[%emt 0:00:40]} f2 {[%emt 0:00:07]} 39. Rf1 {[%emt 0:00:08]} Rc3+ {[%emt 0:00:49]} 40. Rd3 {[%emt 0:00:09]} Rc8 {[%emt 0:01:24]} 41. Rxf2 {[%emt 0:00:05]} Re8 {[%emt 0:00:04]} 42. d6 {[%emt 0:00:06]} Kg7 {[%emt 0:00:08]} 43. Rxf5 {[%emt 0:00:04]} gxf5 {[%emt 0:00:04]} 44. Kf4 {[%emt 0:00:05]} Kf7 {[%emt 0:00:03]} 45. Kxf5 {[%emt 0:00:04]} Rg8 {[%emt 0:00:05]} 46. Ne5+ {[%emt 0:00:05]} Ke8 {[%emt 0:00:04]} 47. Ke6 {[%emt 0:00:03]} Rg6+ {[%emt 0:00:05]} 48. Nxg6 {[%emt 0:00:04]} a5 {[%emt 0:00:03]} 49. d7# {[%emt 0:00:04]} 1-0